bitfinex/quotes_SOLUSD_20260214
["timestamp","ask_amount","ask_price","bid_price","bid_amount"]
[1771095922375,1.2868374,88.077,88.049,11.35724673]
[1771095922862,1.2868374,88.075,88.049,11.35724673]
[1771095923286,1.2868374,88.075,88.049,0.46120687]
[1771095923875,1.2868374,88.075,88.044,28.39479773]
[1771095924073,1.2868374,88.075,88.042,11.35821539]
[1771095925460,28.38379343,88.079,88.037,0.46419596]
[1771095925461,1.2868374,88.073,88.038,11.35873145]
[1771095925665,1.2868374,88.073,88.038,11.82292741]
[1771095927284,1.2868374,88.073,88.039,0.46711678]
[1771095928569,1.2868374,88.071,88.041,0.46855207]
[1771095933183,1.2868374,88.069,88.042,11.35821539]
[1771095933887,1.2868374,88.069,88.042,11.83503959]
[1771095934990,1.2868374,88.069,88.043,0.478148]
[1771095935188,0.2,88.09,88.018,0.478148]
[1771095935189,1.2868374,88.067,88.018,0.478148]
[1771095935391,1.2868374,88.059,88.018,0.478148]
[1771095937991,1.2868374,88.057,88.019,11.36118338]
[1771095938288,1.2868374,88.049,88.019,11.36118338]
[1771095939194,1.2868374,88.049,88.021,0.48329287]
[1771095939898,1.2868374,88.057,88.021,0.48329287]
[1771095940076,1.2868374,88.063,88.032,0.48454237]
[1771095941498,1.30823606,88.061,88.034,0.48699847]
[1771095942696,1.30823606,88.061,88.036,0.49057785]
[1771095943591,11.3558937,88.06,88.036,0.49057785]
[1771095943790,1.33020607,88.059,88.036,0.49057785]
[1771095944671,1.33020607,88.059,88.037,11.35886047]
[1771095944875,1.33020607,88.059,88.038,0.4928961]
[1771095945598,1.33020607,88.067,88.038,0.4928961]
[1771095948200,1.33020607,88.067,88.04,3.38841447]
[1771095948498,1.33020607,88.067,88.041,0.49627459]
[1771095949198,1.33020607,88.066,88.035,11.35908571]
[1771095950106,1.33020607,88.064,88.031,58.35961792]
[1771095950680,1.33020607,88.064,88.031,11.35961792]
[1771095951187,1.33020607,88.062,88.025,11.36040897]
[1771095951396,11.35550685,88.063,88.018,0.49953798]
[1771095951397,1.33020607,88.059,88.018,0.49953798]
[1771095953501,1.33020607,88.057,88.016,0.50165159]
[1771095955701,1.33020607,88.055,88.018,0.50371692]
[1771095956494,1.33020607,88.029,87.986,0.50473183]
[1771095956699,1.33020607,88.019,87.988,11.36514075]
[1771095957085,1.33020607,88.019,87.992,11.36466951]
[1771095958286,1.33020607,88.019,87.992,11.87139632]
[1771095960803,1.33020607,88.046,88.011,0.50963416]
[1771095961895,1.33020607,88.052,88.011,0.50963416]
[1771095962081,1.33020607,88.052,88.021,0.51058111]
[1771095962998,1.33020607,88.052,88.02,2.89213988]
[1771095962999,1.33020607,88.052,88.023,0.51151717]
[1771095963203,11.35550924,88.063,88.031,0.51151717]
[1771095964098,1.4142127,88.072,88.04,2.89213988]
[1771095964404,1.4142127,88.07,88.04,2.89213988]
[1771095964789,1.4142127,88.07,88.041,11.3583444]
[1771095965699,28.3834575,88.08,88.05,2.89213988]
[1771095965700,1.4142127,88.076,88.05,2.89213988]
[1771095967295,1.4142127,88.076,88.051,11.35705443]
[1771095972391,1.4142127,88.082,88.051,11.35705443]
[1771095973298,1.4142127,88.082,88.06,2.89213988]
[1771095973510,1.4142127,88.088,88.06,2.89213988]
[1771095973812,1.4142127,88.088,88.061,0.02067652]
[1771095976004,1.4142127,88.086,88.057,11.35621319]
[1771095976508,1.4142127,88.086,88.061,0.02583396]
[1771095976807,1.4142127,88.086,88.057,11.35621319]
[1771095979009,11.35267071,88.085,88.053,0.02836834]
[1771095979200,1.4142127,88.084,88.053,0.02836834]
[1771095980009,1.4142127,88.084,88.053,47.02836834]
[1771095980595,1.4142127,88.084,88.055,0.03579814]
[1771095985700,1.4142127,88.082,88.051,11.35695003]
[1771095986916,1.4142127,88.08,88.051,0.05216499]
[1771095987299,1.4142127,88.08,88.05,2.89213988]
[1771095987300,0.2,88.09,88.061,0.05216499]
[1771095987504,1.4142127,88.089,88.07,2.89213988]
[1771095987703,1.4142127,88.089,88.066,0.05216499]
[1771095988205,0.2,88.09,88.071,0.05439693]
[1771095989120,0.2,88.09,88.071,11.40887229]
[1771095990404,1.4142127,88.109,88.081,0.05878419]
[1771095990604,1.4142127,88.107,88.081,0.05878419]
[1771095991217,1.4142127,88.107,88.082,0.0609401]
[1771095991719,1.4142127,88.107,88.064,0.06307125]
[1771095992102,1.4142127,88.105,88.064,0.06307125]
[1771095992725,1.4142127,88.103,88.066,0.06517792]
[1771095992929,1.4142127,88.103,88.071,0.06517792]
[1771095993711,1.4142127,88.109,88.081,0.0672604]
[1771095994914,1.4142127,88.108,88.07,2.89213988]
[1771095995225,1.4142127,88.108,88.071,11.35447536]
[1771095996305,1.4142127,88.106,88.071,11.35447536]
[1771095996503,1.4142127,88.099,88.071,11.35447536]
[1771095996931,1.4142127,88.097,88.067,11.35499108]
[1771095999638,1.4142127,88.095,88.067,11.35499108]
[1771096000921,1.4142127,88.095,88.063,47.0]
[1771096001125,1.4142127,88.095,88.057,11.35619805]
[1771096001318,1.41652048,88.078,88.031,0.08308177]
[1771096001526,1.41652048,88.069,88.031,0.08308177]
[1771096002046,1.41652048,88.069,88.021,0.0849586]
[1771096002217,1.41652048,88.067,88.021,0.0849586]
[1771096003420,1.4142127,88.065,88.03,2.89252653]
[1771096004445,1.4142127,88.065,88.031,0.09046074]
[1771096005745,1.4142127,88.065,88.032,0.09225281]
[1771096006140,1.4142127,88.063,88.032,0.09225281]
[1771096006530,1.4142127,88.069,88.041,0.0940243]
[1771096007933,11.35486215,88.068,88.041,0.0940243]
[1771096008238,1.4142127,88.067,88.031,11.35963467]
[1771096008949,1.4142127,88.067,88.032,0.09921763]
[1771096010251,11.35512002,88.066,88.032,0.09921763]
[1771096010457,1.4142127,88.065,88.032,0.09921763]
[1771096013058,1.4142127,88.063,88.032,0.09921763]
[1771096013243,1.4142127,88.063,88.026,0.10586792]
[1771096014752,1.4142127,88.059,88.022,39.76278657]
[1771096014949,1.4142127,88.059,88.023,47.0]
[1771096017255,1.4142127,88.057,88.024,11.36053803]
[1771096020262,1.4142127,88.055,88.022,0.11679148]
[1771096022064,1.4142127,88.055,88.017,0.11975365]
[1771096022366,1.4142127,88.053,88.017,0.11975365]
[1771096023574,1.4142127,88.039,88.004,60.28421817]
[1771096023777,1.4142127,88.039,88.004,11.48421817]
[1771096024266,11.35873145,88.038,88.004,0.12120927]
[1771096024469,1.4142127,88.037,88.004,0.12120927]
[1771096024665,1.4142127,88.037,87.993,0.12264817]
[1771096025661,1.4142127,88.035,87.993,0.12264817]
[1771096030570,1.4142127,88.033,87.993,0.12264817]
[1771096031071,1.4142127,88.033,87.99,2.89252653]
[1771096031072,1.4142127,88.029,87.988,11.36516285]
[1771096031372,1.4142127,88.019,87.992,11.36466951]
[1771096031579,1.4142127,88.009,87.991,16.35478349]
[1771096031876,2.89252653,88.0,87.971,1.38836455]
[1771096032269,2.89252653,88.0,87.973,1.48034679]
[1771096032465,2.89252653,88.03,87.973,1.48034679]
[1771096032678,2.89252653,88.03,87.972,39.78538625]
[1771096032679,57.9,88.016,87.975,1.48034679]
[1771096033265,2.89252653,88.02,87.975,1.48034679]
[1771096033266,11.36118338,88.019,87.975,1.48034679]
[1771096033863,2.89252653,88.0,87.969,1.48034679]
[1771096035361,2.89252653,88.0,87.971,1.48034679]
[1771096036283,11.36376549,87.999,87.971,1.48034679]
[1771096036675,2.89252653,87.99,87.965,12.84849338]
[1771096037083,11.36376549,87.999,87.966,1.48034679]
[1771096037681,0.02184274,87.998,87.966,1.48034679]
[1771096039457,0.02881774,87.989,87.966,1.48034679]
[1771096042686,0.02881774,87.989,87.961,1.48034679]
[1771096042687,0.04926572,87.988,87.961,1.48034679]
[1771096043571,0.04926572,87.988,87.962,1.48034679]
[1771096044267,0.04926572,87.988,87.96,0.1]
[1771096044585,0.06250927,87.979,87.96,0.1]
[1771096044783,2.89252653,87.97,87.95,0.1]
[1771096044983,2.89252653,87.96,87.95,0.1]
[1771096046073,11.3680032,87.967,87.95,0.1]
[1771096048797,0.02558654,87.966,87.95,0.07441346]
[1771096048980,2.89252653,87.96,87.95,0.07441346]
[1771096050385,2.89252653,87.96,87.94,0.1]
[1771096050794,2.89252653,87.96,87.94,1.62439469]
[1771096051683,69.4280479,87.966,87.94,1.62439469]
[1771096052690,69.45853114,87.966,87.94,1.62439469]
[1771096053288,58.08,87.972,87.942,1.52439469]
[1771096054975,69.44725321,87.972,87.944,1.52439469]
[1771096055700,58.08,87.972,87.944,1.52439469]
[1771096056774,2.89252653,87.99,87.944,1.52439469]
[1771096056976,2.89252653,87.99,87.946,1.52439469]
[1771096056977,59.42505699,87.989,87.946,1.52439469]
[1771096058398,59.42505699,87.989,87.951,1.52439469]
[1771096060398,0.06975275,87.988,87.953,1.52439469]
[1771096062098,0.08563442,87.978,87.953,1.52439469]
[1771096063097,0.09592051,87.969,87.94,11.47128274]
[1771096063302,0.09592051,87.967,87.941,1.52439469]
[1771096064204,0.09592051,87.967,87.943,1.52439469]
[1771096064581,58.14,87.968,87.943,1.52439469]
[1771096065094,58.14,87.968,87.951,1.52439469]
[1771096067284,58.25579323,87.968,87.945,1.52439469]
[1771096067698,0.12061958,87.967,87.945,1.52439469]
[1771096068085,11.4885189,87.967,87.94,0.1]
[1771096068402,0.12061958,87.966,87.94,0.1]
[1771096068792,0.12539049,87.964,87.94,0.1]
[1771096069313,0.12539049,87.959,87.94,0.1]
[1771096069900,58.18,87.965,87.941,1.52439469]
[1771096070106,2.89806765,87.96,87.94,0.1]
[1771096070307,0.1301066,87.958,87.94,0.1]
[1771096072691,0.13937693,87.963,87.94,0.1]
[1771096073610,2.89806765,87.96,87.94,0.1]
[1771096074215,11.36893325,87.959,87.94,0.1]
[1771096075618,11.36893325,87.959,87.941,1.52439469]
[1771096075995,11.52622049,87.959,87.94,0.1]
[1771096076198,0.15728724,87.958,87.94,0.1]
[1771096078507,11.36893325,87.959,87.941,1.52439469]
[1771096078708,58.38,87.958,87.941,1.52439469]
[1771096079414,11.36634878,87.979,87.943,1.52439469]
[1771096079607,58.4,87.973,87.943,1.52439469]
[1771096079919,1.45596013,87.996,87.961,1.48041227]
[1771096080124,1.45596013,87.99,87.961,1.48041227]
[1771096080508,1.45596013,87.99,87.96,2.89806765]
[1771096080712,1.45596013,87.979,87.943,11.37089752]
[1771096080915,1.45596013,87.977,87.943,11.37089752]
[1771096081425,1.45596013,87.975,87.943,11.37089752]
[1771096081923,11.36699479,87.974,87.941,1.48041227]
[1771096082225,1.45596013,87.947,87.9,1.58041227]
[1771096082408,2.89806765,87.95,87.9,1.58041227]
[1771096082409,1.45596013,87.929,87.9,1.58041227]
[1771096082610,59.91596013,87.928,87.9,1.58041227]
[1771096083129,1.45596013,87.927,87.9,1.58041227]
[1771096083323,58.44,87.926,87.9,1.58041227]
[1771096083628,1.45596013,87.925,87.9,1.58041227]
[1771096083811,1.45596013,87.924,87.9,1.58041227]
[1771096084018,1.45596013,87.922,87.9,1.58041227]
[1771096085723,1.45596013,87.922,87.9,0.1]
[1771096085927,1.45596013,87.922,87.893,1.48041227]
[1771096085928,1.45596013,87.919,87.886,1.48041227]
[1771096086121,1.45596013,87.899,87.863,1.48041227]
[1771096086819,39.04,87.902,87.862,11.38143314]
[1771096086820,39.04,87.902,87.871,1.48041227]
[1771096088029,39.04,87.902,87.873,1.48041227]
[1771096088321,1.45596013,87.903,87.873,1.48041227]
[1771096089931,1.45596013,87.903,87.875,1.48041227]
[1771096091631,2.89806765,87.9,87.868,1.48041227]
[1771096091939,1.45596013,87.899,87.868,1.48041227]
[1771096092418,1.45596013,87.897,87.868,1.48041227]
[1771096093531,1.33570036,87.895,87.868,1.48041227]
[1771096095437,1.33570036,87.893,87.871,1.29816795]
[1771096096539,59.85570036,87.904,87.881,1.29816795]
[1771096096741,58.54,87.912,87.891,1.29816795]
[1771096096944,58.54,87.912,87.9,2.89806765]
[1771096098741,0.05451775,87.921,87.901,1.29816795]
[1771096098923,0.05451775,87.921,87.91,2.89806765]
[1771096099738,0.05451775,87.921,87.911,1.29816795]
[1771096100430,1.39021811,87.921,87.9,2.89806765]
[1771096103247,1.33570036,87.92,87.9,2.89806765]
[1771096104539,1.33570036,87.92,87.89,2.89806765]
[1771096104846,1.33570036,87.918,87.89,2.89806765]
[1771096105646,1.33570036,87.916,87.89,2.89806765]
[1771096107223,1.33570036,87.916,87.886,1.29816795]
[1771096108934,58.54,87.919,87.901,1.29816795]
[1771096109634,0.05451775,87.921,87.901,1.29816795]
[1771096110149,11.37397634,87.92,87.901,1.29816795]
[1771096110453,0.05451775,87.921,87.901,1.29816795]
[1771096110950,11.37397634,87.92,87.901,1.29816795]
[1771096112250,0.05451775,87.921,87.901,1.29816795]
[1771096113652,0.05451775,87.921,87.911,1.29816795]
[1771096120055,0.05451775,87.921,87.91,2.89806765]
[1771096120249,1.33570036,87.92,87.895,1.29816795]
[1771096120954,1.33570036,87.92,87.892,1.29816795]
[1771096121558,0.05451775,87.921,87.892,1.29816795]
[1771096121740,0.85025188,87.921,87.892,1.29816795]
[1771096122454,0.79573413,87.919,87.892,1.29816795]
[1771096122658,0.79573413,87.919,87.891,58.3776755]
[1771096122837,0.79573413,87.919,87.884,0.78617771]
[1771096123443,0.79573413,87.919,87.88,2.89806765]
[1771096123643,0.79573413,87.919,87.881,0.71431283]
[1771096124358,0.79573413,87.919,87.891,0.71431283]
[1771096124857,0.70147474,87.917,87.891,0.71431283]
[1771096125559,0.70147474,87.915,87.891,0.71431283]
[1771096127759,0.70147474,87.913,87.891,0.71431283]
[1771096128953,0.70147474,87.911,87.891,0.71431283]
[1771096129740,0.70147474,87.915,87.891,0.71431283]
[1771096129942,12.07609795,87.915,87.893,0.71431283]
[1771096130245,0.70147474,87.921,87.901,0.71431283]
[1771096130545,58.74,87.917,87.901,0.71431283]
[1771096130864,1.53233508,87.929,87.911,0.71431283]
[1771096132742,11.3712585,87.942,87.92,2.90212976]
[1771096132963,11.3712585,87.942,87.93,2.90212976]
[1771096133461,11.3712585,87.942,87.92,2.90212976]
[1771096133848,12.07204524,87.947,87.93,2.90212976]
[1771096134161,0.70147474,87.946,87.93,2.90212976]
[1771096137363,11.37074307,87.945,87.93,2.90212976]
[1771096137547,12.07221781,87.945,87.93,2.90212976]
[1771096138573,0.70147474,87.944,87.93,2.90212976]
[1771096139971,0.70147474,87.952,87.93,2.90212976]
[1771096140155,59.64147474,87.952,87.93,2.90212976]
[1771096140765,0.70147474,87.951,87.93,2.90212976]
[1771096140957,0.70147474,87.951,87.92,14.27599868]
[1771096142293,0.70147474,87.95,87.92,14.27599868]
[1771096142464,0.70147474,87.949,87.92,14.27599868]
[1771096144870,0.70147474,87.949,87.93,2.90212976]
[1771096149060,1.22586807,87.96,87.94,2.90212976]
[1771096149260,0.70147474,87.978,87.95,2.90212976]
[1771096149459,50.1,87.984,87.95,2.90212976]
[1771096149460,50.1,87.984,87.97,2.90212976]
[1771096149769,0.70147474,87.999,87.97,2.90212976]
[1771096149972,0.70147474,87.999,87.98,2.90212976]
[1771096150276,0.70147474,87.998,87.98,2.90212976]
[1771096151375,59.06,87.999,87.98,2.90212976]
[1771096152781,0.05087601,88.006,87.99,2.90212976]
[1771096152982,0.05087601,88.006,88.0,2.90212976]
[1771096153163,0.68242504,88.006,87.99,2.90212976]
[1771096153364,0.68242504,88.006,87.951,56.84952238]
[1771096153365,0.63154903,88.005,87.971,11.36738207]
[1771096153782,0.63154903,88.005,87.98,2.90212976]
[1771096154373,0.63154903,88.003,87.98,2.90212976]
[1771096155788,0.63154903,88.003,87.97,2.90212976]
[1771096156084,0.63154903,88.001,87.97,2.90212976]
[1771096157581,0.63154903,87.999,87.97,2.90212976]
[1771096158685,11.36389463,87.998,87.97,2.90212976]
[1771096158876,0.63154903,87.997,87.97,2.90212976]
[1771096159080,0.05087601,88.006,87.99,2.90212976]
[1771096163083,0.68242504,88.006,87.98,2.90212976]
[1771096164791,0.68242504,88.006,87.981,11.3660904]
[1771096166099,0.05087601,88.006,87.99,2.90212976]
[1771096168595,0.05087601,88.006,87.986,11.36541091]
[1771096168794,0.05087601,88.006,87.99,2.90212976]
[1771096169594,0.2,88.01,87.99,2.90212976]
[1771096171303,0.83154903,88.01,87.99,2.90212976]
[1771096173380,0.63154903,88.01,87.99,2.90212976]
[1771096173604,11.1929693,88.018,87.991,0.36845096]
[1771096175515,0.47114963,88.015,87.991,0.36845096]
[1771096177593,0.47114963,88.013,87.991,0.36845096]
[1771096178402,0.47114963,88.013,87.986,0.36845096]
[1771096179507,0.47114963,88.013,87.99,3.27058072]
[1771096180203,0.47114963,88.013,87.991,0.36845096]
[1771096181785,59.18,88.016,87.993,0.36845096]
[1771096183411,59.66190635,88.016,87.993,0.36845096]
[1771096185201,0.48190635,88.016,87.993,0.36845096]
[1771096185403,0.48190635,88.016,87.995,0.36845096]
[1771096186191,0.48190635,88.014,87.988,0.36845096]
[1771096186910,0.48190635,88.014,87.981,0.36845096]
[1771096187722,0.48190635,88.012,87.975,0.36845096]
[1771096187904,0.48190635,88.012,87.973,47.0]
[1771096188218,0.48190635,88.012,87.971,0.36845096]
[1771096189095,0.48190635,88.01,87.971,0.36845096]
[1771096189710,0.48190635,88.008,87.973,0.36845096]
[1771096193613,0.48190635,88.006,87.98,3.2643515]
[1771096193813,0.48190635,88.006,87.981,0.36845096]
[1771096194124,0.48190635,88.006,87.975,0.36845096]
[1771096195816,0.48190635,88.004,87.975,0.36845096]
[1771096197018,11.36324898,88.003,87.975,0.36845096]
[1771096197223,0.48190635,88.002,87.975,0.36845096]
[1771096198697,59.24,88.011,87.956,47.0]
[1771096198698,0.48190635,87.999,87.956,47.0]
[1771096198913,0.48190635,87.969,87.931,0.36845096]
[1771096199116,0.48190635,87.967,87.931,0.36845096]
[1771096199715,0.48190635,87.959,87.92,0.36845096]
[1771096199907,0.48190635,87.957,87.92,0.36845096]
[1771096200114,0.48190635,87.957,87.921,0.36845096]
[1771096200323,59.26,87.964,87.931,0.36845096]
[1771096200511,0.48190635,87.963,87.931,0.36845096]
[1771096200713,0.48190635,87.963,87.933,0.36845096]
[1771096201036,0.48190635,87.961,87.927,0.36845096]
[1771096201212,0.48190635,87.959,87.923,11.37354625]
[1771096201926,0.48190635,87.959,87.923,11.74199721]
[1771096202628,0.48190635,87.959,87.925,11.37332954]
[1771096202817,0.48190635,87.957,87.926,0.36845096]
[1771096205641,0.48190635,87.957,87.931,0.36845096]
[1771096206131,0.48190635,87.955,87.931,0.36845096]
[1771096214847,0.48382291,87.961,87.933,0.36845096]
[1771096215135,28.41597914,87.979,87.932,11.37242414]
[1771096215136,0.48382291,87.976,87.951,0.36845096]
[1771096215311,0.48382291,87.973,87.951,0.36845096]
[1771096216616,0.48382291,87.972,87.945,0.36845096]
[1771096216816,0.48382291,87.972,87.943,11.37099638]
[1771096217141,0.48382291,87.972,87.944,0.36845096]
[1771096217638,0.48382291,87.972,87.951,0.36845096]
[1771096218630,11.36686008,87.976,87.94,2.89590054]
[1771096218631,0.48382291,87.97,87.94,2.89590054]
[1771096219226,0.48382291,87.97,87.941,11.37126027]
[1771096219420,0.48382291,87.97,87.942,0.36845096]
[1771096220638,0.48382291,87.97,87.944,0.36845096]
[1771096221332,0.48382291,87.97,87.94,2.89590054]
[1771096221538,0.48382291,87.97,87.937,11.37168387]
[1771096221918,0.48382291,87.97,87.94,2.89590054]
[1771096222521,0.48382291,87.97,87.941,0.36845096]
[1771096225146,0.48382291,87.969,87.941,0.36845096]
[1771096225531,0.48382291,87.969,87.941,11.73968678]
[1771096226522,0.48382291,87.967,87.93,2.89590054]
[1771096226724,0.48382291,87.967,87.932,0.36845096]
[1771096230020,28.41825229,87.972,87.931,11.37255347]
[1771096230021,0.48382291,87.965,87.931,11.37255347]
[1771096230226,59.42,87.964,87.931,11.37255347]
[1771096230427,0.48382291,87.963,87.931,11.74100443]
[1771096230624,0.48382291,87.963,87.932,0.36845096]
[1771096232148,0.48382291,87.963,87.934,0.36845096]
[1771096238443,0.48382291,87.963,87.936,0.36845096]
[1771096239749,11.3685455,87.962,87.938,0.36845096]
[1771096240047,0.48382291,87.961,87.938,0.36845096]
[1771096246458,59.42,87.964,87.941,0.36845096]
[1771096247645,59.42,87.964,87.943,0.36845096]
[1771096248363,59.05154904,87.964,87.95,2.89590054]
[1771096248650,59.6,87.981,87.95,2.89590054]
[1771096248855,0.5,87.98,87.95,2.8975274]
[1771096253362,0.5,87.98,87.951,11.36996736]
[1771096256848,0.5,87.98,87.96,2.8975274]
[1771096259670,0.5,87.979,87.96,2.8975274]
[1771096262853,0.5,87.979,87.961,11.36867475]
[1771096263057,0.5,87.992,87.97,2.8975274]
[1771096263271,0.5,87.992,87.98,2.8975274]
[1771096267401,0.06336326,87.999,87.98,2.8975274]
[1771096267402,0.56336326,87.999,87.98,2.8975274]
[1771096267580,0.56336326,87.999,87.99,2.8975274]
[1771096269088,0.56336326,87.999,87.98,2.8975274]
[1771096271580,0.56336326,87.999,87.975,11.36681795]
[1771096272658,0.56336326,87.999,87.971,11.36738243]
[1771096273780,0.56336326,87.999,87.98,2.8975274]
[1771096276261,0.5,87.998,87.98,2.8975274]
[1771096279166,0.5,87.998,87.99,2.8975274]
[1771096282888,0.5,88.002,87.99,2.8975274]
[1771096283264,0.5,88.002,87.98,2.8975274]
[1771096286596,0.5,88.0,87.96,2.8975274]
[1771096287188,28.40359884,88.018,87.99,2.8975274]
[1771096287383,0.2,88.05,87.98,2.8975274]
[1771096287384,5.41155249,88.022,87.98,2.8975274]
[1771096287794,28.40360384,88.017,87.98,2.8975274]
[1771096288584,28.40360384,88.017,87.98,3.38311644]
[1771096288991,11.36169971,88.015,87.98,3.38311644]
[1771096289194,11.36169971,88.015,87.981,0.48558904]
[1771096289393,0.48378497,88.014,87.981,0.48558904]
[1771096289912,0.48378497,88.014,87.99,2.8975274]
[1771096290284,0.48378497,88.012,87.988,0.48558904]
[1771096292403,0.48378497,88.021,88.0,2.8975274]
[1771096292605,0.48378497,88.021,88.01,2.8975274]
[1771096292803,0.05069061,88.022,88.011,0.48558904]
[1771096293096,0.05069061,88.022,87.989,11.36505699]
[1771096293097,7.45460011,88.06,88.04,2.81e-06]
[1771096293302,7.45460011,88.06,88.03,2.8975274]
[1771096293303,0.5,88.059,88.03,2.8975274]
[1771096293803,0.5,88.059,88.04,2.85e-06]
[1771096293986,0.5,88.059,88.03,2.8975274]
[1771096294488,0.5,88.057,88.04,2.8975274]
[1771096296501,0.5,88.055,88.05,2.8975274]
[1771096296702,7.45460011,88.06,88.05,2.8975274]
[1771096297505,11.35516204,88.066,88.05,2.8975274]
[1771096297506,0.5,88.066,88.05,2.8975274]
[1771096297695,0.5,88.066,88.06,2.8975274]
[1771096298217,0.5,88.066,88.05,2.8975274]
[1771096299502,0.5,88.066,88.043,11.3580098]
[1771096300008,0.5,88.066,88.04,2.8975274]
[1771096300204,0.5,88.064,88.031,11.35960882]
[1771096302306,0.5,88.062,88.031,11.35960882]
[1771096309106,0.5,88.06,88.031,11.35960882]
[1771096310906,0.5,88.06,88.03,2.89223245]
[1771096312914,0.5,88.06,88.031,11.35963467]
[1771096314615,11.35602266,88.059,88.031,11.35963467]
[1771096314802,0.5,88.058,88.03,2.89223245]
[1771096315208,0.5,88.056,88.03,2.89223245]
[1771096316717,0.5,88.063,88.04,2.89223245]
[1771096317307,0.5,88.078,88.05,2.89223245]
[1771096320109,0.5,88.076,88.05,2.89223245]
[1771096324125,0.5,88.074,88.05,2.89223245]
[1771096326626,0.5,88.078,88.06,2.89223245]
[1771096328511,0.5,88.078,88.05,2.89223245]
[1771096329412,0.5,88.076,88.04,2.89223245]
[1771096330439,0.5,88.076,88.034,11.35924756]
[1771096330727,0.5,88.074,88.034,11.35924756]
[1771096333731,0.5,88.072,88.034,11.35924756]
[1771096334989,11.35421752,88.073,88.021,47.0]
[1771096334990,0.5,88.059,88.021,47.0]
[1771096335123,0.5,88.059,88.02,2.89223245]
[1771096335438,0.5,88.059,88.014,11.36176537]
[1771096335619,0.5,88.049,88.014,11.36176537]
[1771096335818,0.5,88.047,88.014,11.36176537]
[1771096336930,0.5,88.046,88.014,11.36176537]
[1771096337137,0.5,88.046,88.02,2.89223245]
[1771096337632,0.5,88.046,88.014,11.36176537]
[1771096338938,0.5,88.046,88.02,2.89223245]
[1771096339723,11.35764814,88.047,88.02,2.89223245]
[1771096340422,0.5,88.046,88.02,2.89223245]
[1771096343951,0.5,88.044,88.01,2.89223245]
[1771096346036,0.5,88.044,88.011,11.36221608]
[1771096347230,0.5,88.042,88.011,11.36221608]
[1771096349248,0.5,88.053,88.03,2.89223245]
[1771096350252,0.5,88.065,88.031,11.35963467]
[1771096351749,0.5,88.063,88.024,11.36043607]
[1771096351948,0.5,88.059,88.024,11.36043607]
[1771096353462,0.5,88.057,88.024,11.36043607]
[1771096355252,0.5,88.057,88.03,2.89223245]
[1771096355457,0.5,88.057,88.031,11.35963467]
[1771096357464,0.5,88.057,88.04,2.89223245]
[1771096358355,0.5,88.062,88.04,2.89223245]
[1771096363759,0.5,88.06,88.024,11.36045509]
[1771096366554,11.35602266,88.059,88.03,2.89223245]
[1771096366754,0.5,88.058,88.03,2.89223245]
[1771096367774,0.5,88.056,88.03,2.89223245]
[1771096369776,11.35653852,88.055,88.03,2.89223245]
[1771096370071,0.5,88.054,88.03,2.89223245]
[1771096370878,0.5,88.054,88.03,2.89299553]
[1771096371771,0.5,88.054,88.024,11.36045509]
[1771096372272,0.5,88.052,88.02,47.88]
[1771096372679,0.5,88.052,88.02,50.77299553]
[1771096372979,0.5,88.052,88.02,2.89299553]
[1771096373575,0.5,88.05,88.02,2.89299553]
[1771096375163,0.5,88.048,88.01,2.89299553]
[1771096375370,0.5,88.048,88.005,11.36299073]
[1771096376159,0.5,88.048,88.01,2.89299553]
[1771096377793,0.5,88.039,87.995,48.34]
[1771096377966,0.5,88.028,87.984,11.3656298]
[1771096378491,0.5,88.028,87.99,2.89299553]
[1771096378992,0.5,88.026,87.99,2.89299553]
[1771096380393,0.5,88.026,87.984,11.3656298]
[1771096380981,39.76052801,88.027,87.99,2.89299553]
[1771096380982,0.5,88.024,87.99,2.89299553]
[1771096383694,0.5,88.024,87.974,48.38]
[1771096383695,0.5,88.022,87.981,11.36603482]
[1771096384681,0.5,88.018,87.974,59.74691306]
[1771096386376,0.5,88.016,87.974,59.74691306]
[1771096388093,5.36086188,88.026,87.966,47.0]
[1771096388094,0.5,87.999,87.966,47.0]
[1771096388298,0.5,87.999,87.955,11.36945028]
[1771096389288,0.5,87.997,87.954,28.42367291]
[1771096389489,0.5,88.009,87.98,2.89299553]
[1771096389695,0.5,88.015,87.99,2.89299553]
[1771096392001,11.36182879,88.014,87.99,2.89299553]
[1771096392302,0.5,88.013,87.99,2.89299553]
[1771096392796,0.5,88.013,87.983,11.36570613]
[1771096396000,0.5,88.013,87.99,2.89299553]
[1771096398026,0.5,88.011,87.99,2.89299553]
[1771096398193,0.5,88.011,87.98,2.89299553]
[1771096398899,0.5,88.009,87.97,2.89299553]
[1771096399204,0.5,88.009,87.971,11.36738243]
[1771096400411,0.5,88.007,87.97,2.89299553]